bitfinex-derivatives/quotes_BTCF0:USTF0_20250427
["timestamp","ask_amount","ask_price","bid_price","bid_amount"]
[1745749368484,1.15907664,94136.0,94135.0,0.34038235]
[1745749368677,1.51987664,94136.0,94135.0,0.34038235]
[1745749370085,1.51987664,94136.0,94135.0,0.12796835]
[1745749370886,1.73228844,94136.0,94135.0,0.12796835]
[1745749372489,0.2124148,94135.0,94124.0,0.06184748]
[1745749372690,0.3608,94128.0,94126.0,0.0531085]
[1745749372890,0.1026,94127.0,94126.0,0.2655428]
[1745749373090,0.1026,94127.0,94126.0,0.3855428]
[1745749373388,0.1026,94127.0,94126.0,0.43740049]
[1745749374390,0.1046,94127.0,94126.0,0.43740049]
[1745749374987,0.1056,94127.0,94126.0,0.43740049]
[1745749400010,1.16697664,94127.0,94126.0,0.43740049]
[1745749414321,1.16597664,94127.0,94126.0,0.43740049]
[1745749414510,1.16697664,94127.0,94126.0,0.43740049]
[1745749417018,0.1056,94127.0,94126.0,0.43740049]
[1745749417222,1.16697664,94127.0,94126.0,0.43740049]
[1745749431033,0.1056,94127.0,94126.0,0.43740049]
[1745749432034,1.16697664,94127.0,94126.0,0.43740049]
[1745749436623,0.1056,94127.0,94126.0,0.43740049]
[1745749436843,0.0721,94127.0,94126.0,0.43740049]
[1745749437029,0.0721,94127.0,94126.0,0.50380049]
[1745749439538,0.1088,94127.0,94126.0,0.47580049]
[1745749439840,0.1088,94127.0,94126.0,0.45660049]
[1745749440038,0.1088,94127.0,94126.0,0.43740049]
[1745749440239,0.1088,94127.0,94126.0,0.52096049]
[1745749441251,0.1088,94127.0,94126.0,0.50176049]
[1745749446340,1.17017664,94127.0,94126.0,0.43740049]
[1745749446545,1.17017664,94127.0,94126.0,0.50176049]
[1745749454167,1.17017664,94127.0,94126.0,0.38176049]
[1745749455164,1.17017664,94127.0,94126.0,0.50176049]
[1745749459161,1.17017664,94127.0,94126.0,0.38176049]
[1745749459360,1.17017664,94127.0,94126.0,0.32865199]
[1745749463065,1.17017664,94127.0,94126.0,0.05185769]
[1745749463263,1.17017664,94127.0,94122.0,0.06701]
[1745749463469,1.13767664,94126.0,94125.0,0.2124366]
[1745749464763,1.13867664,94126.0,94125.0,0.2124366]
[1745749465363,1.14067664,94126.0,94125.0,0.2124366]
[1745749481166,1.14067664,94126.0,94125.0,0.3324366]
[1745749482179,1.14067664,94126.0,94125.0,0.2124366]
[1745749512103,1.14067664,94126.0,94125.0,0.3324366]
[1745749513196,1.14067664,94126.0,94125.0,0.2124366]
[1745749515102,1.14067664,94126.0,94125.0,0.3324366]
[1745749516203,1.14067664,94126.0,94125.0,0.2124366]
[1745749517102,1.14067664,94126.0,94125.0,0.3324366]
[1745749518097,1.14067664,94126.0,94125.0,0.2124366]
[1745749525107,1.14067664,94126.0,94125.0,0.3324366]
[1745749526112,1.14067664,94126.0,94125.0,0.2124366]
[1745749527299,1.14067664,94126.0,94125.0,0.3324366]
[1745749529111,0.3608,94141.0,94140.0,0.2124028]
[1745749529407,0.0824,94156.0,94155.0,0.2123689]
[1745749529798,1.14377664,94156.0,94155.0,0.2123689]
[1745749530199,1.14377664,94156.0,94155.0,0.3323689]
[1745749530805,1.10227664,94156.0,94155.0,0.3323689]
[1745749530998,1.06137664,94156.0,94155.0,0.3323689]
[1745749531202,0.0824,94173.0,94165.0,0.0530865]
[1745749531399,0.98891376,94173.0,94172.0,0.2123306]
[1745749531802,2.0502904,94173.0,94172.0,0.2123306]
[1745749532204,2.0917904,94173.0,94172.0,0.38396919]
[1745749532401,2.0967904,94173.0,94172.0,0.38396919]
[1745749533706,2.0967904,94173.0,94172.0,0.38496919]
[1745749534202,2.0967904,94173.0,94172.0,0.26496919]
[1745749535203,2.1364904,94173.0,94172.0,0.26496919]
[1745749545023,1.14757664,94173.0,94172.0,0.26496919]
[1745749554229,1.35990494,94173.0,94172.0,0.26496919]
[1745749555330,1.50837664,94173.0,94172.0,0.26496919]
[1745749555724,1.72070494,94173.0,94172.0,0.05263859]
[1745749555920,1.72070494,94173.0,94172.0,0.26496919]
[1745749556928,1.50837664,94173.0,94172.0,0.26496919]
[1745749560830,1.14757664,94173.0,94172.0,0.26496919]
[1745749561033,1.50837664,94173.0,94172.0,0.26496919]
[1745749561425,1.72070494,94173.0,94172.0,0.26496919]
[1745749561840,1.50837664,94173.0,94172.0,0.26496919]
[1745749568032,1.51137664,94173.0,94172.0,0.26596919]
[1745749568431,1.51237664,94173.0,94172.0,0.26496919]
[1745749569236,1.51137664,94173.0,94172.0,0.26496919]
[1745749571845,1.50337664,94173.0,94172.0,0.26396919]
[1745749572144,1.15157664,94173.0,94172.0,0.26496919]
[1745749572339,1.51237664,94173.0,94172.0,0.26496919]
[1745749574434,1.15157664,94173.0,94172.0,0.26496919]
[1745749574636,1.51237664,94173.0,94172.0,0.26496919]
[1745749575032,1.51237664,94173.0,94172.0,0.30456919]
[1745749576145,1.51237664,94173.0,94172.0,0.26496919]
[1745749576344,1.72470494,94173.0,94172.0,0.26496919]
[1745749576543,1.36390494,94173.0,94172.0,0.26496919]
[1745749576733,1.51237664,94173.0,94172.0,0.26496919]
[1745749577734,1.72470494,94173.0,94172.0,0.05263859]
[1745749578140,1.36390494,94173.0,94172.0,0.05263859]
[1745749578337,1.72470494,94173.0,94172.0,0.05263859]
[1745749578837,1.72470494,94173.0,94172.0,0.26496919]
[1745749579545,1.51237664,94173.0,94172.0,0.26496919]
[1745749580146,1.15157664,94173.0,94172.0,0.26496919]
[1745749580540,1.72470494,94173.0,94172.0,0.26496919]
[1745749582538,1.36390494,94173.0,94172.0,0.26496919]
[1745749582745,1.72470494,94173.0,94172.0,0.26496919]
[1745749583448,1.51237664,94173.0,94172.0,0.26496919]
[1745749583952,1.15157664,94173.0,94172.0,0.26496919]
[1745749584148,1.51237664,94173.0,94172.0,0.26496919]
[1745749584350,1.15157664,94173.0,94172.0,0.26496919]
[1745749584550,1.51237664,94173.0,94172.0,0.26496919]
[1745749584853,1.72470494,94173.0,94172.0,0.26496919]
[1745749587648,1.36390494,94173.0,94172.0,0.26496919]
[1745749587844,1.72470494,94173.0,94172.0,0.26496919]
[1745749592253,1.72470494,94173.0,94172.0,0.05263859]
[1745749592451,0.2123441,94166.0,94165.0,0.06428]
[1745749592652,0.2123543,94162.0,94158.0,0.09110264]
[1745749592853,0.0393,94161.0,94160.0,0.2123566]
[1745749593160,1.13887664,94161.0,94160.0,0.2123566]
[1745749593659,1.13887664,94161.0,94160.0,0.2510566]
[1745749595758,1.14487664,94161.0,94160.0,0.2520566]
[1745749595954,0.3608,94174.0,94160.0,0.0427]
[1745749596158,1.06137664,94173.0,94168.0,0.0530843]
[1745749596350,1.06137664,94173.0,94172.0,0.2123306]
[1745749596555,0.3608,94174.0,94173.0,0.2123283]
[1745749596944,1.42217664,94174.0,94173.0,0.2123283]
[1745749597352,1.42217664,94174.0,94173.0,0.2512283]
[1745749597858,1.50157664,94174.0,94173.0,0.2512283]
[1745749599756,1.50557664,94174.0,94173.0,0.2512283]
[1745749600353,1.50757664,94174.0,94173.0,0.2512283]
[1745749601146,1.50257664,94174.0,94173.0,0.2512283]
[1745749601356,1.50657664,94174.0,94173.0,0.2512283]
[1745749601956,1.50657664,94174.0,94173.0,0.2123283]
[1745749602145,1.83890274,94174.0,94173.0,0.2123283]
[1745749603161,1.71890274,94174.0,94173.0,0.2123283]
[1745749609775,0.2123283,94173.0,94172.0,0.00814364]
[1745749609975,1.40718704,94173.0,94172.0,0.2123306]
[1745749610575,1.76798704,94173.0,94172.0,0.2123306]
[1745749610767,1.40718704,94173.0,94172.0,0.22010562]
[1745749610967,1.77398704,94173.0,94172.0,0.22110562]
[1745749612777,1.41318704,94173.0,94172.0,0.22110562]
[1745749612976,1.77398704,94173.0,94172.0,0.22110562]
[1745749613368,1.41318704,94173.0,94172.0,0.22110562]
[1745749613666,1.77398704,94173.0,94172.0,0.22110562]
[1745749617678,1.41318704,94173.0,94172.0,0.22110562]
[1745749617877,1.77398704,94173.0,94172.0,0.22110562]
[1745749618574,1.41318704,94173.0,94172.0,0.22110562]
[1745749618776,1.77398704,94173.0,94172.0,0.22110562]
[1745749618969,0.2123351,94170.0,94169.0,0.06428]
[1745749619169,1.27371174,94170.0,94169.0,0.06428]
[1745749619376,2.2626255,94170.0,94169.0,0.06428]
[1745749619875,1.35241174,94170.0,94169.0,0.06428]
[1745749620076,1.35241174,94170.0,94169.0,0.06528]
[1745749620277,1.47241174,94170.0,94169.0,0.06528]
[1745749620477,1.47741174,94170.0,94169.0,0.06628]
[1745749621973,1.48041174,94170.0,94169.0,0.06628]
[1745749622780,1.48141174,94170.0,94169.0,0.06528]
[1745749623571,1.48241174,94170.0,94169.0,0.06528]
[1745749624179,1.84321174,94170.0,94169.0,0.06528]
[1745749624880,1.48241174,94170.0,94169.0,0.06528]
[1745749625082,1.84321174,94170.0,94169.0,0.06528]
[1745749629984,1.48241174,94170.0,94169.0,0.06528]
[1745749630186,1.84321174,94170.0,94169.0,0.06528]
[1745749632088,1.72321174,94170.0,94169.0,0.06528]
[1745749633091,1.48241174,94170.0,94169.0,0.06528]
[1745749633393,1.84321174,94170.0,94169.0,0.06528]
[1745749634394,1.84321174,94170.0,94164.0,0.0409]
[1745749634395,0.2123448,94166.0,94164.0,0.06428]
[1745749634596,0.3330464,94165.0,94164.0,0.2766286]
[1745749634993,1.39442304,94165.0,94164.0,0.2766286]
[1745749635686,1.40142304,94165.0,94164.0,0.2776286]
[1745749636094,1.40142304,94165.0,94164.0,0.06528]
[1745749636797,1.40242304,94165.0,94164.0,0.06528]
[1745749638298,1.76322304,94165.0,94164.0,0.06528]
[1745749639089,1.76322304,94165.0,94164.0,0.001]
[1745749639287,0.0530943,94152.0,94145.0,0.06428]
[1745749639489,0.2123892,94146.0,94145.0,0.06428]
[1745749639893,1.09555252,94146.0,94145.0,0.06428]
[1745749640088,0.2124029,94140.0,94138.0,0.05058]
[1745749640289,0.2124029,94140.0,94132.0,0.00265]
[1745749640290,0.4413,94139.0,94134.0,0.0531035]
[1745749640493,0.4413,94139.0,94138.0,0.212406]
[1745749640494,0.4805,94139.0,94138.0,0.212406]
[1745749640890,0.4805,94139.0,94136.0,0.0531027]
[1745749640891,0.4805,94139.0,94135.0,0.06428]
[1745749641094,0.4805,94139.0,94138.0,0.2124073]
[1745749641595,0.4805,94139.0,94136.0,0.2124108]
[1745749641900,0.4805,94139.0,94137.0,0.2124095]
[1745749642398,0.2124095,94137.0,94136.0,0.12]
[1745749642694,0.2124095,94137.0,94136.0,0.125]
[1745749643094,0.2124095,94137.0,94136.0,0.005]
[1745749643486,0.2124118,94136.0,94135.0,0.11766823]
[1745749643688,1.09367512,94136.0,94135.0,0.11766823]
[1745749645186,1.09467512,94136.0,94135.0,0.12366823]
[1745749645387,1.09567512,94136.0,94135.0,0.12366823]
[1745749646497,0.2124298,94128.0,94127.0,0.00531194]
[1745749646800,0.2124501,94119.0,94118.0,0.06428]
[1745749646988,0.80266332,94119.0,94118.0,0.2767324]
[1745749647188,0.80266332,94119.0,94118.0,0.44984173]
[1745749647498,0.87926332,94119.0,94118.0,0.44984173]
[1745749648696,0.88026332,94119.0,94118.0,0.44984173]
[1745749649397,0.88126332,94119.0,94118.0,0.45384173]
[1745749650199,0.88126332,94119.0,94118.0,0.46162473]
[1745749650708,0.0786,94119.0,94118.0,0.46162473]
[1745749653301,0.002,94119.0,94118.0,0.46162473]
[1745749653503,0.3608,94132.0,94118.0,0.46162473]
[1745749653504,0.0408,94126.0,94125.0,0.2124366]
[1745749653888,0.0408,94126.0,94123.0,0.05311]
[1745749654088,0.0817,94125.0,94124.0,0.2767189]
[1745749655210,0.0817,94125.0,94124.0,0.3967189]
[1745749655397,0.0827,94125.0,94124.0,0.3997189]
[1745749655905,0.0847,94125.0,94124.0,0.3997189]
[1745749659497,0.0847,94125.0,94124.0,0.3791189]
[1745749667096,0.0847,94125.0,94124.0,0.2591189]
[1745749675919,0.0847,94125.0,94124.0,0.2385189]
[1745749685015,0.88736332,94125.0,94124.0,0.2385189]
[1745749685524,0.2124487,94120.0,94111.0,0.2124676]
[1745749685820,0.0402,94119.0,94114.0,0.21246]
[1745749686023,0.0804,94119.0,94115.0,0.2124588]
[1745749686221,0.80266332,94118.0,94115.0,0.2124588]
[1745749686422,0.80266332,94116.0,94115.0,0.2124588]
[1745749686619,0.80266332,94116.0,94113.0,0.2124627]
[1745749686817,0.1186,94115.0,94114.0,0.2124614]
[1745749687318,2.03017708,94115.0,94114.0,0.2124614]
[1745749687519,2.03017708,94115.0,94114.0,0.2651689]
[1745749689327,2.03117708,94115.0,94114.0,0.2681689]
[1745749695915,1.04226332,94115.0,94114.0,0.2681689]
[1745749700218,1.40306332,94115.0,94114.0,0.2681689]
[1745749701225,1.28306332,94115.0,94114.0,0.2681689]
[1745749708138,1.40306332,94115.0,94114.0,0.2681689]
[1745749711136,1.28306332,94115.0,94114.0,0.2681689]
[1745749714133,1.40306332,94115.0,94114.0,0.2681689]
[1745749717141,1.28306332,94115.0,94114.0,0.2681689]
[1745749731845,0.92226332,94115.0,94114.0,0.2681689]
[1745749733254,1.04226332,94115.0,94114.0,0.2681689]
[1745749736247,0.92226332,94115.0,94114.0,0.2681689]
[1745749741056,1.04226332,94115.0,94114.0,0.2681689]
[1745749741245,1.04226332,94115.0,94114.0,0.3324489]
[1745749744158,0.92226332,94115.0,94114.0,0.3324489]
[1745749745153,1.04226332,94115.0,94114.0,0.3324489]
[1745749748857,2.03117708,94115.0,94114.0,0.1199875]
[1745749749058,2.03117708,94115.0,94100.0,0.10265668]
[1745749749359,0.80266332,94101.0,94097.0,0.06959364]
[1745749749560,0.0811,94100.0,94097.0,0.12271814]
[1745749749756,0.88376332,94100.0,94097.0,0.06959364]
[1745749749953,0.2124976,94098.0,94097.0,0.00531364]
[1745749750261,0.5732976,94098.0,94097.0,0.00531364]
[1745749750463,0.5732976,94098.0,94097.0,0.00631364]
[1745749750464,1.45706092,94098.0,94097.0,0.00631364]
[1745749751157,2.56897468,94098.0,94097.0,0.00531364]
[1745749751351,2.35647708,94098.0,94088.0,0.06428]
[1745749751552,0.2125062,94095.0,94094.0,0.2125058]
[1745749751753,0.80266332,94089.0,94088.0,0.2125201]
[1745749752147,0.92266332,94089.0,94088.0,0.2125201]
[1745749753160,0.92266332,94089.0,94088.0,0.2667056]
[1745749753951,0.92366332,94089.0,94088.0,0.2667056]
[1745749754858,1.00616332,94089.0,94088.0,0.2667056]
[1745749755055,1.00716332,94089.0,94088.0,0.2697056]
[1745749760564,1.21968122,94089.0,94088.0,0.2697056]
[1745749760761,1.00716332,94089.0,94088.0,0.2697056]
[1745749770279,1.00716332,94089.0,94088.0,0.0571855]
[1745749770280,1.21968122,94089.0,94088.0,0.0571855]
[1745749770673,1.21968122,94089.0,94088.0,0.2697056]
[1745749771179,0.05313,94088.0,94081.0,0.00817166]
[1745749771475,0.2125293,94084.0,94080.0,0.17051842]
[1745749771675,0.0858,94083.0,94080.0,0.17051842]
[1745749771971,0.93086332,94083.0,94080.0,0.17051842]
[1745749772174,0.80266332,94082.0,94081.0,0.212536]
[1745749772373,0.80266332,94082.0,94081.0,0.215536]
[1745749772573,0.89016332,94082.0,94081.0,0.215536]
[1745749773263,1.01016332,94082.0,94081.0,0.215536]
[1745749773673,1.01116332,94082.0,94081.0,0.218536]
[1745749773865,1.01116332,94082.0,94081.0,0.215536]
[1745749774068,1.01116332,94082.0,94081.0,0.22355422]
[1745749774672,1.01216332,94082.0,94081.0,0.22355422]
[1745749775578,1.01216332,94082.0,94081.0,0.01101822]
[1745749776468,1.01216332,94082.0,94081.0,0.22355422]
[1745749781066,0.89216332,94082.0,94081.0,0.22355422]
[1745749783177,1.01216332,94082.0,94081.0,0.22355422]
[1745749784076,0.89216332,94082.0,94081.0,0.22355422]
[1745749784665,0.0895,94082.0,94081.0,0.22355422]
[1745749784880,0.89216332,94082.0,94081.0,0.22355422]
[1745749802183,0.89216332,94082.0,94081.0,0.24115422]
[1745749804085,0.89216332,94082.0,94081.0,0.22355422]
[1745749805184,1.01216332,94082.0,94081.0,0.22355422]
[1745749805380,0.122,94082.0,94081.0,0.22355422]
[1745749805585,0.3608,94103.0,94102.0,0.2124885]
[1745749805780,1.16346332,94103.0,94102.0,0.2124885]
[1745749806084,1.28346332,94103.0,94102.0,0.2124885]
[1745749806792,1.28746332,94103.0,94102.0,0.2134885]
[1745749807379,1.28946332,94103.0,94102.0,0.2134885]
[1745749810280,1.16946332,94103.0,94102.0,0.2134885]
[1745749811991,1.21436332,94103.0,94102.0,0.2134885]
[1745749815985,0.4117,94103.0,94102.0,0.2134885]
[1745749816187,1.21436332,94103.0,94102.0,0.2134885]
[1745749816584,0.85356332,94103.0,94102.0,0.2134885]
[1745749816992,0.0509,94103.0,94102.0,0.2134885]
[1745749817695,0.0509,94103.0,94102.0,0.5742885]
[1745749818084,0.0509,94103.0,94102.0,0.6942885]
[1745749822305,0.0509,94103.0,94102.0,0.5742885]
[1745749823106,0.0509,94103.0,94102.0,0.6942885]
[1745749825313,0.0509,94103.0,94102.0,0.5742885]
[1745749828816,0.0509,94103.0,94102.0,0.2134885]
[1745749829017,0.0509,94103.0,94102.0,0.5742885]
[1745749831117,0.0958,94103.0,94102.0,0.5742885]
[1745749832422,0.0958,94103.0,94102.0,0.6385285]
[1745749835924,0.0958,94103.0,94102.0,0.2777285]
[1745749836224,0.0958,94103.0,94102.0,0.6385285]
[1745749838720,0.0958,94103.0,94102.0,0.2777285]
[1745749838926,0.0958,94103.0,94102.0,0.6385285]
[1745749841215,0.2158,94103.0,94102.0,0.6385285]
[1745749842229,0.0958,94103.0,94102.0,0.6385285]
[1745749843227,0.2158,94103.0,94102.0,0.6385285]
[1745749844131,0.0958,94103.0,94102.0,0.6385285]
[1745749845619,0.1433,94103.0,94102.0,0.6385285]
[1745749848226,0.2633,94103.0,94102.0,0.6385285]
[1745749849333,0.2633,94103.0,94102.0,0.2777285]
[1745749849633,0.2633,94103.0,94102.0,0.6385285]
[1745749850337,0.1433,94103.0,94102.0,0.6385285]
[1745749852638,0.1433,94103.0,94102.0,0.2777285]
[1745749852840,0.1433,94103.0,94102.0,0.6385285]
[1745749854039,0.1433,94103.0,94102.0,0.5742885]
[1745749854241,0.1433,94103.0,94102.0,0.6385285]
[1745749855632,0.1433,94103.0,94102.0,0.2777285]
[1745749855837,0.1433,94103.0,94102.0,0.6385285]
[1745749860144,0.1433,94103.0,94102.0,0.2777285]
[1745749860340,0.1433,94103.0,94102.0,0.6385285]
[1745749864140,0.94596332,94103.0,94102.0,0.6385285]
[1745749872359,0.94596332,94103.0,94102.0,0.6385285]
[1745749873855,0.3608,94127.0,94126.0,0.2124343]
[1745749874051,0.0475,94115.0,94114.0,0.2124614]
[1745749874250,0.0475,94115.0,94114.0,0.2767014]
[1745749874456,0.85016332,94115.0,94114.0,0.2767014]
[1745749875153,0.97016332,94115.0,94114.0,0.2767014]
[1745749875657,0.97516332,94115.0,94114.0,0.2767014]
[1745749876454,0.98016332,94115.0,94114.0,0.2777014]
[1745749879655,0.98016332,94115.0,94114.0,0.29336987]
[1745749880657,0.98016332,94115.0,94114.0,0.2777014]
[1745749881652,0.98016332,94115.0,94114.0,0.29339696]
[1745749882560,0.98016332,94115.0,94114.0,0.2777014]
[1745749884257,1.96907708,94115.0,94114.0,0.2777014]
[1745749884462,2.01427708,94115.0,94113.0,0.06424]
[1745749884656,0.0454,94114.0,94113.0,0.2124615]
[1745749884851,0.84806332,94114.0,94113.0,0.2124615]
[1745749885051,2.00217708,94114.0,94113.0,0.2124615]
[1745749886051,2.00717708,94114.0,94113.0,0.2124615]
[1745749886647,2.00717708,94114.0,94113.0,0.2134615]
[1745749887551,2.01117708,94114.0,94113.0,0.2134615]
[1745749895961,1.02226332,94114.0,94113.0,0.2587615]
[1745749897758,2.01117708,94114.0,94113.0,0.2134615]
[1745749898264,1.02226332,94114.0,94113.0,0.2134615]
[1745749903368,1.02226332,94114.0,94113.0,0.2604615]
[1745749908068,1.02226332,94114.0,94113.0,0.2134615]
[1745749908769,1.02226332,94114.0,94113.0,0.2578615]
[1745749929279,0.90226332,94114.0,94113.0,0.2578615]
[1745749930177,1.02226332,94114.0,94113.0,0.2578615]
[1745749932173,0.90226332,94114.0,94113.0,0.3025615]
[1745749934088,1.02226332,94114.0,94113.0,0.3025615]
[1745749935184,0.90226332,94114.0,94113.0,0.3025615]
[1745749939080,0.90226332,94114.0,94113.0,0.3507615]
[1745749941985,0.90226332,94114.0,94113.0,0.3025615]
[1745749945292,0.90226332,94114.0,94113.0,0.2578615]
[1745749955811,0.90226332,94114.0,94113.0,0.2134615]
[1745749956213,1.02226332,94114.0,94113.0,0.2134615]
[1745749964421,0.2124908,94101.0,94100.0,0.06424]
[1745749964721,0.80266332,94101.0,94100.0,0.06424]
[1745749965023,1.79157708,94101.0,94100.0,0.06424]
[1745749965214,1.91157708,94101.0,94100.0,0.06424]
[1745749965524,1.22775412,94101.0,94100.0,0.06424]
[1745749966121,0.2124956,94099.0,94095.0,0.06424]
[1745749966421,0.0934,94098.0,94097.0,0.2124983]
[1745749966626,0.89606332,94098.0,94097.0,0.2124983]
[1745749967122,1.22856092,94098.0,94097.0,0.2124983]
[1745749967322,1.01606332,94098.0,94097.0,0.2124983]
[1745749967710,1.01706332,94098.0,94097.0,0.2134983]
[1745749969121,1.22956092,94098.0,94097.0,0.001]
[1745749981335,2.00597708,94098.0,94088.0,0.06424]
[1745749981530,1.37598122,94089.0,94088.0,0.06424]
[1745749982232,1.49598122,94089.0,94088.0,0.06424]
[1745749982428,1.59108122,94089.0,94088.0,0.06424]
[1745749982626,1.37856332,94089.0,94088.0,0.06424]
[1745749983427,1.37856332,94089.0,94088.0,0.11174]
[1745749984634,1.37856332,94089.0,94088.0,0.3242601]
[1745749986125,1.37956332,94089.0,94088.0,0.3242601]
[1745749987129,1.01876332,94089.0,94088.0,0.3242601]
[1745749987335,1.37956332,94089.0,94088.0,0.3242601]
[1745749993934,1.33006332,94089.0,94088.0,0.3242601]
[1745749994128,1.21006332,94089.0,94088.0,0.3242601]
[1745749994536,1.21006332,94089.0,94088.0,0.3738601]
[1745749994941,1.16446332,94089.0,94088.0,0.3738601]
[1745749995134,0.3618,94089.0,94088.0,0.4938601]
[1745749996636,0.001,94089.0,94088.0,0.4938601]
[1745749997131,0.001,94089.0,94088.0,0.3738601]
[1745750006246,0.80366332,94089.0,94088.0,0.3242601]
[1745750008055,1.79257708,94089.0,94071.0,0.0461]
[1745750008259,0.80266332,94082.0,94079.0,0.2125386]
[1745750008460,0.1437,94081.0,94078.0,0.0495]
[1745750008650,0.1437,94081.0,94080.0,0.2125382]
[1745750008851,1.13261376,94081.0,94080.0,0.2125382]
[1745750009046,1.93527708,94081.0,94080.0,0.2125382]
[1745750009352,2.05527708,94081.0,94080.0,0.2125382]
[1745750010162,2.05627708,94081.0,94080.0,0.2135382]
[1745750010673,2.05627708,94081.0,94080.0,0.22133124]
[1745750013572,2.05627708,94081.0,94080.0,0.22233124]
[1745750016166,1.01786332,94081.0,94080.0,0.28508255]
[1745750017771,1.01786332,94081.0,94080.0,0.28526693]
[1745750018870,1.01786332,94081.0,94080.0,0.33186693]
[1745750019066,1.01786332,94081.0,94080.0,0.28526693]
[1745750019274,0.89786332,94081.0,94080.0,0.28526693]
[1745750020273,1.01786332,94081.0,94080.0,0.26933124]
[1745750020973,1.01786332,94081.0,94080.0,0.31763124]
[1745750021277,0.89786332,94081.0,94080.0,0.33334683]
[1745750021686,0.89786332,94081.0,94080.0,0.69414676]
[1745750022175,0.89786332,94081.0,94080.0,0.67843124]
[1745750022669,0.0952,94081.0,94080.0,0.67843124]
[1745750024479,0.0952,94081.0,94080.0,0.31763124]
[1745750024678,0.0952,94081.0,94080.0,0.67843124]
[1745750025180,0.89786332,94081.0,94080.0,0.67843124]
[1745750025569,0.89786332,94081.0,94080.0,0.31763124]
[1745750025772,0.89786332,94081.0,94080.0,0.67843124]
[1745750028179,0.89786332,94081.0,94080.0,0.63013124]
[1745750031882,0.89786332,94081.0,94080.0,0.26933124]
[1745750050113,0.0485,94089.0,94088.0,0.2125201]
[1745750050507,0.85116332,94089.0,94088.0,0.2125201]
[1745750052112,0.97116332,94089.0,94088.0,0.2125201]
[1745750052306,1.96007708,94089.0,94088.0,0.2125201]
[1745750052508,1.96107708,94089.0,94088.0,0.2125201]
[1745750052920,1.96207708,94089.0,94088.0,0.2135201]
[1745750057089,0.97316332,94089.0,94088.0,0.2135201]
[1745750057288,1.96207708,94089.0,94088.0,0.2135201]
[1745750060793,0.97316332,94089.0,94088.0,0.2135201]
[1745750066202,0.85316332,94089.0,94088.0,0.4296201]
[1745750066604,0.80466332,94089.0,94088.0,0.4296201]
[1745750066802,0.002,94089.0,94088.0,0.4296201]
[1745750067199,0.002,94089.0,94088.0,0.3096201]
[1745750069606,0.002,94089.0,94088.0,0.2626201]
[1745750071210,0.80466332,94089.0,94088.0,0.2626201]
[1745750080806,0.80466332,94089.0,94088.0,0.2778401]
[1745750081508,0.80466332,94089.0,94088.0,0.06532]
[1745750082012,0.80466332,94089.0,94088.0,0.001]
[1745750082312,0.92466332,94089.0,94088.0,0.001]
[1745750082516,1.91357708,94089.0,94088.0,0.2135201]
[1745750089311,0.92466332,94089.0,94088.0,0.2135201]
[1745750090810,1.91357708,94089.0,94088.0,0.2135201]
[1745750091913,0.92466332,94089.0,94088.0,0.2135201]
[1745750103028,0.92466332,94089.0,94088.0,0.3049201]
[1745750103218,0.80466332,94089.0,94088.0,0.3049201]
[1745750104109,0.92466332,94089.0,94088.0,0.3049201]
[1745750106821,1.13718122,94089.0,94088.0,0.001]
[1745750108120,1.23358122,94089.0,94088.0,0.001]
[1745750108919,1.02106332,94089.0,94088.0,0.001]
[1745750109520,1.02106332,94089.0,94088.0,0.2580201]
[1745750111615,0.92466332,94089.0,94088.0,0.2580201]
[1745750112331,0.80466332,94089.0,94088.0,0.3056201]
[1745750116327,0.92466332,94089.0,94088.0,0.3056201]
[1745750121738,0.92466332,94089.0,94088.0,0.2580201]
[1745750139654,0.0531317,94085.0,94072.0,0.06436]
[1745750139852,0.80266332,94081.0,94077.0,0.2125436]
[1745750140149,0.0914,94080.0,94078.0,0.257442]
[1745750140553,0.80266332,94079.0,94078.0,0.257442]
[1745750140753,0.80266332,94079.0,94078.0,0.06999416]
[1745750140945,0.89406332,94079.0,94078.0,0.06999416]
[1745750141250,1.01406332,94079.0,94078.0,0.06999416]
[1745750141645,1.01506332,94079.0,94078.0,0.07099416]
[1745750142845,1.22760382,94079.0,94078.0,0.07299416]
[1745750143045,1.01506332,94079.0,94078.0,0.07299416]
[1745750144451,1.01506332,94079.0,94078.0,0.28553686]
[1745750149258,1.22760382,94079.0,94078.0,0.02809416]
[1745750149448,0.0531366,94077.0,94051.0,0.0956]
[1745750149644,0.8232,94079.0,94051.0,0.0956]
[1745750149645,0.3608,94052.0,94051.0,0.3082037]
[1745750150250,0.4808,94052.0,94051.0,0.3082037]
[1745750150551,0.4808,94052.0,94051.0,0.33228997]
[1745750150951,0.86152564,94052.0,94051.0,0.24452773]
[1745750151255,0.86152564,94052.0,94051.0,0.2768437]
[1745750151456,0.86152564,94052.0,94051.0,0.2126037]
[1745750151661,0.86152564,94052.0,94051.0,0.2768437]
[1745750151858,0.86152564,94052.0,94051.0,0.24985788]
[1745750151859,0.4818,94052.0,94051.0,0.24985788]
[1745750152059,0.4828,94052.0,94051.0,0.42042188]
[1745750152249,0.3628,94052.0,94051.0,0.54042188]
[1745750152752,0.3628,94052.0,94051.0,0.58902188]
[1745750153144,0.3628,94052.0,94051.0,0.46902188]
[1745750153548,0.3628,94052.0,94051.0,0.36269788]
[1745750156654,0.3628,94052.0,94051.0,0.29845788]
[1745750156955,0.3628,94052.0,94051.0,0.36269788]
[1745750158255,0.4828,94052.0,94051.0,0.36269788]
[1745750160849,0.122,94052.0,94051.0,0.36269788]
[1745750161049,0.4828,94052.0,94051.0,0.36269788]
[1745750161747,0.82075968,94052.0,94051.0,0.10149418]
[1745750161955,0.82075968,94052.0,94037.0,0.06955703]
[1745750161956,1.34248532,94052.0,94037.0,0.06955703]
[1745750162260,0.74152564,94041.0,94040.0,0.21369197]
[1745750162859,1.07948532,94041.0,94040.0,0.238587]
[1745750163259,1.19948532,94041.0,94040.0,0.238587]
[1745750163560,1.19948532,94041.0,94040.0,0.31096643]
[1745750163953,1.20048532,94041.0,94040.0,0.31096643]
[1745750164859,1.56228532,94041.0,94040.0,0.31096643]
[1745750165250,1.56428532,94041.0,94037.0,0.00531703]
[1745750165454,0.59335874,94038.0,94037.0,0.00531703]
[1745750165659,0.212649,94031.0,94027.0,0.00159485]
[1745750165959,0.74152564,94031.0,94027.0,0.00159485]
[1745750166161,1.19948532,94031.0,94027.0,0.00159485]
[1745750166659,1.19948532,94031.0,94030.0,0.18611561]
[1745750166850,1.29558532,94031.0,94030.0,0.18611561]
[1745750167056,1.29558532,94031.0,94030.0,0.03222679]
[1745750167358,1.29658532,94031.0,94027.0,0.21425125]
[1745750167561,0.74152564,94028.0,94027.0,0.00159485]
[1745750167761,0.74152564,94028.0,94027.0,0.21425285]
[1745750167955,1.07948532,94028.0,94027.0,0.21425285]
[1745750168160,1.19948532,94028.0,94027.0,0.00159485]
[1745750168663,1.19948532,94028.0,94027.0,0.26265208]